bitfinex-derivatives/quotes_ETHF0:USTF0_20251013
["timestamp","ask_amount","ask_price","bid_price","bid_amount"]
[1760360801201,0.9941,4105.3,4105.2,3.90092]
[1760360801898,0.9941,4105.3,4105.2,0.00311314]
[1760360802098,1.4291,4104.5,4104.4,0.4382]
[1760360802294,1.4291,4104.5,4104.4,0.6932]
[1760360802496,1.4291,4104.5,4104.4,0.255]
[1760360803102,1.4291,4104.5,4104.4,0.25752284]
[1760360806708,1.0388,4103.8,4103.7,3.2078]
[1760360807605,1.04115515,4103.8,4103.7,3.21068443]
[1760360807805,1.04115515,4103.8,4103.7,3.46568443]
[1760360808901,0.435,4104.5,4103.7,3.46568443]
[1760360808902,1.0388,4104.4,4104.3,0.43822]
[1760360809106,0.435,4104.5,4104.3,3.90102]
[1760360809308,0.435,4105.0,4104.9,0.43815]
[1760360809507,0.435,4105.0,4104.9,3.90095]
[1760360810001,0.43780089,4105.0,4104.9,3.90095]
[1760360810512,0.43780089,4105.0,4104.9,3.4628]
[1760360810913,0.00280089,4105.0,4104.9,3.4628]
[1760360811216,1.4738,4105.5,4105.4,0.4381]
[1760360811511,1.4738,4105.5,4105.4,3.9009]
[1760360811906,1.4316,4106.0,4105.9,0.43805]
[1760360812103,1.4316,4105.5,4105.4,3.2078]
[1760360812304,1.4316,4105.5,4105.4,3.4628]
[1760360813608,0.3928,4105.5,4105.4,3.4628]
[1760360813809,1.4316,4105.5,4105.4,3.4628]
[1760360814010,0.3928,4105.5,4105.4,3.4628]
[1760360814213,0.39472583,4106.0,4105.9,0.43805]
[1760360814511,0.39472583,4106.0,4105.9,3.90085]
[1760360815112,0.00192583,4106.0,4105.9,3.90085]
[1760360815915,1.43352583,4106.0,4105.9,3.90085]
[1760360816618,0.00192583,4106.0,4105.9,3.90085]
[1760360816916,1.43352583,4106.0,4105.9,3.90085]
[1760360817802,1.43352583,4106.0,4105.9,3.4628]
[1760360818212,1.4316,4106.5,4106.4,0.43799]
[1760360818409,0.3928,4106.5,4106.4,3.90079]
[1760360818813,1.4316,4106.5,4106.4,3.90079]
[1760360820116,1.43367881,4106.5,4106.4,3.90079]
[1760360820505,0.3928,4107.5,4106.4,3.90079]
[1760360820506,0.3928,4107.5,4106.4,3.4628]
[1760360820710,3.2078,4108.6,4108.3,0.43779]
[1760360820711,0.3928,4108.5,4108.3,0.43779]
[1760360820912,1.4316,4108.5,4108.4,0.255]
[1760360821710,1.43452914,4108.5,4108.4,0.25729318]
[1760360823921,0.39572914,4108.5,4108.4,0.25729318]
[1760360824220,1.4316,4109.0,4108.9,0.43773]
[1760360824514,1.4316,4109.0,4108.9,3.90053]
[1760360824921,1.0388,4109.9,4109.8,0.43763]
[1760360825114,1.0388,4109.9,4109.8,0.255]
[1760360825612,1.04174851,4109.9,4109.8,0.255]
[1760360826014,1.0388,4109.8,4109.7,3.2078]
[1760360826219,1.0388,4109.8,4109.7,3.4618]
[1760360827013,1.0388,4109.8,4109.7,0.254]
[1760360830418,0.83052,4109.0,4108.7,3.2078]
[1760360830618,1.0388,4108.9,4108.8,0.254]
[1760360830917,0.3928,4109.0,4108.4,0.00229318]
[1760360830918,0.83057,4108.5,4108.4,0.00229318]
[1760360831125,1.4316,4108.5,4108.4,0.00229318]
[1760360831326,0.3928,4109.0,4108.4,0.00229318]
[1760360831524,1.0388,4108.9,4108.8,3.64554]
[1760360831722,1.0388,4108.9,4108.8,3.89954]
[1760360833122,1.0388,4109.4,4109.3,0.43769]
[1760360833425,0.00294851,4109.9,4109.8,0.43763]
[1760360833620,1.0388,4111.4,4110.4,1.09392]
[1760360833824,1.4316,4111.5,4111.2,3.64528]
[1760360834022,0.3928,4111.5,4111.3,0.69147]
[1760360834225,1.0388,4111.4,4111.3,0.69147]
[1760360834723,0.3928,4112.0,4111.6,0.43743]
[1760360835027,1.0388,4111.9,4111.8,3.2078]
[1760360835429,1.0388,4111.9,4111.7,0.254]
[1760360835630,0.9716,4111.8,4111.7,0.254]
[1760360835930,0.97426984,4111.8,4111.7,0.254]
[1760360836527,1.40906,4111.4,4111.3,0.25716395]
[1760360837032,0.9716,4111.4,4111.3,0.25716395]
[1760360840135,4.1794,4111.4,4111.3,0.25716395]
[1760360840435,4.1794,4111.4,4111.3,0.00316395]
[1760360841329,1.40911,4110.9,4110.8,0.254]
[1760360841526,0.9716,4110.9,4110.8,0.254]
[1760360842233,0.9716,4110.9,4110.8,0.25606931]
[1760360843137,0.9716,4110.9,4109.0,1.09429]
[1760360843138,1.09382,4110.8,4109.6,0.43765]
[1760360843439,0.9716,4109.9,4109.7,0.43764]
[1760360843641,0.3833,4110.0,4109.7,0.43764]
[1760360843826,0.9716,4109.9,4109.5,3.64546]
[1760360844027,0.3833,4110.0,4109.5,3.2078]
[1760360844028,0.9716,4109.7,4109.5,3.2078]
[1760360844333,0.9716,4109.6,4109.5,3.21067911]
[1760360844530,0.43766,4109.5,4109.0,3.2078]
[1760360844735,1.40931,4109.1,4109.0,3.2078]
[1760360845237,0.9716,4109.1,4109.0,3.2078]
[1760360845638,0.9716,4109.1,4109.0,3.4618]
[1760360845840,0.9716,4109.1,4109.0,3.46431124]
[1760360848445,0.3833,4109.5,4109.0,3.46431124]
[1760360848736,0.9716,4109.4,4109.3,0.43769]
[1760360848941,0.9716,4109.4,4109.3,0.254]
[1760360849530,0.9716,4109.1,4109.0,3.21031124]
[1760360849730,0.9716,4109.1,4109.0,3.46431124]
[1760360850130,0.9716,4109.1,4109.0,0.25651124]
[1760360852743,0.9716,4109.1,4109.0,0.00251124]
[1760360854847,1.0943,4109.0,4108.6,0.254]
[1760360855032,1.0943,4109.0,4108.0,3.2078]
[1760360855033,0.9716,4108.3,4108.2,0.4378]
[1760360855940,0.97459452,4108.3,4108.2,0.44032952]
[1760360859745,0.00299452,4108.3,4108.2,0.44032952]
[1760360860646,0.00299452,4108.3,4108.2,0.69432952]
[1760360860835,0.97459452,4108.3,4108.2,0.69432952]
[1760360861042,0.97459452,4108.3,4108.2,0.25652952]
[1760360861241,0.97459452,4108.3,4108.2,0.69432952]
[1760360862041,0.97459452,4108.3,4108.2,0.44032952]
[1760360862235,0.97459452,4108.3,4108.2,0.69432952]
[1760360863543,1.41238452,4108.3,4108.2,0.25652952]
[1760360863845,0.97459452,4108.3,4108.2,0.69432952]
[1760360864547,0.00299452,4108.3,4108.2,0.69432952]
[1760360865248,0.00299452,4108.3,4108.2,1.55694626]
[1760360865947,0.96609452,4108.3,4108.2,0.44032952]
[1760360866146,0.96609452,4108.3,4108.2,0.69432952]
[1760360867143,1.40388452,4108.3,4108.2,0.00252952]
[1760360867447,0.96609452,4108.3,4108.2,0.69432952]
[1760360868046,1.40388452,4108.3,4108.2,0.25652952]
[1760360868245,0.96609452,4108.3,4108.2,0.25652952]
[1760360868749,0.43785,4107.7,4107.6,0.86261674]
[1760360868941,0.43785,4107.7,4106.8,3.2078]
[1760360868942,1.3508,4107.0,4106.8,3.2078]
[1760360869144,0.9683,4106.9,4106.8,3.64575]
[1760360869458,0.9683,4106.9,4106.8,4.76485002]
[1760360869649,0.9683,4106.9,4106.8,4.76686224]
[1760360869947,0.9683,4106.9,4106.8,3.90176222]
[1760360870145,0.9683,4106.9,4106.8,3.46381222]
[1760360871048,0.9683,4106.9,4106.8,4.32880731]
[1760360871251,0.3825,4107.0,4106.9,0.43794]
[1760360871452,1.3508,4107.0,4106.9,1.30302379]
[1760360871654,0.3825,4107.5,4107.4,0.43789]
[1760360871851,1.3508,4107.5,4107.4,3.89969]
[1760360872048,3.5911,4108.5,4107.4,3.89969]
[1760360872049,1.3508,4108.0,4107.9,0.43783]
[1760360872253,1.3508,4108.0,4107.9,3.89963]
[1760360873248,1.3508,4108.0,4107.9,5.19733185]
[1760360874159,1.3508,4108.0,4107.9,3.89963]
[1760360874749,1.3508,4108.0,4107.9,5.19791992]
[1760360874946,1.3508,4108.0,4107.9,3.4618]
[1760360875455,1.3508,4108.0,4107.9,4.76008992]
[1760360875855,0.97129452,4108.3,4108.2,0.4378]
[1760360876050,0.97129452,4108.3,4108.2,0.6918]
[1760360876253,1.78862,4108.0,4107.9,3.2078]
[1760360876558,0.9683,4107.4,4107.3,1.29819739]
[1760360876761,0.9683,4107.4,4107.3,0.6919]
[1760360877558,0.3825,4108.0,4107.9,0.43783]
[1760360877753,0.3825,4108.0,4107.9,3.89963]
[1760360878053,0.4562,4108.4,4108.2,0.4378]
[1760360878257,0.4562,4108.4,4108.2,0.6918]
[1760360878449,0.3825,4109.0,4108.9,0.43773]
[1760360878649,1.3508,4109.0,4108.9,3.89953]
[1760360878855,0.3825,4109.0,4108.9,3.89953]
[1760360879349,1.35288116,4109.0,4108.9,3.4618]
[1760360880250,0.3825,4109.5,4109.4,0.43767]
[1760360880453,0.43759,4110.2,4109.6,0.43764]
[1760360880658,1.3508,4109.5,4109.4,4.50448326]
[1760360880865,1.3508,4109.5,4109.4,4.75848326]
[1760360881255,0.38432733,4109.5,4109.4,4.75848326]
[1760360881460,0.38432733,4109.5,4109.4,3.4618]
[1760360881762,1.35262733,4109.5,4109.4,3.4618]
[1760360882059,1.79028733,4109.5,4109.4,3.4618]
[1760360882464,1.35262733,4109.5,4109.4,3.4618]
[1760360883556,1.35262733,4109.5,4109.4,4.75780847]
[1760360883557,0.38432733,4109.5,4109.4,4.75780847]
[1760360883758,1.35262733,4109.5,4109.4,3.4618]
[1760360884462,1.35262733,4109.5,4109.4,4.75780847]
[1760360885267,0.3825,4110.0,4109.4,4.55598]
[1760360885563,0.3825,4110.0,4109.9,3.64542]
[1760360885763,0.3825,4110.0,4109.9,3.89942]
[1760360885963,0.3825,4110.5,4110.4,0.43757]
[1760360886161,0.38441561,4110.5,4110.4,0.69403179]
[1760360886368,0.38441561,4110.5,4110.4,3.90183179]
[1760360886568,1.35271561,4110.5,4110.4,3.90183179]
[1760360887259,1.35271561,4110.5,4110.4,3.21026179]
[1760360887465,1.35271561,4110.5,4110.4,3.46426179]
[1760360889064,1.35271561,4110.5,4109.9,1.2943556]
[1760360889065,1.35271561,4110.5,4109.9,4.5021556]
[1760360889271,0.82016,4109.5,4109.4,1.2943556]
[1760360889468,1.3508,4109.0,4108.9,3.2078]
[1760360889662,3.2078,4109.6,4108.9,0.0279]
[1760360889964,0.9683,4110.4,4110.0,0.4376]
[1760360890164,1.40587,4110.4,4110.1,0.254]
[1760360890363,0.38441561,4110.5,4110.1,0.254]
[1760360890564,0.9683,4110.2,4110.1,0.254]
[1760360891063,1.35271561,4110.5,4110.3,0.43757]
[1760360891368,1.4059,4110.1,4110.0,0.00240018]
[1760360891564,4.6137,4110.1,4110.0,0.00240018]
[1760360892162,4.6137,4110.1,4108.7,1.2943556]
[1760360892163,0.43771,4109.1,4108.6,1.2943556]
[1760360892364,0.3825,4108.5,4108.2,4.5021556]
[1760360892672,0.9683,4108.4,4108.3,0.254]
[1760360893370,0.9683,4108.4,4108.3,0.2566758]
[1760360894469,0.9683,4109.4,4108.6,0.43775]
[1760360894671,0.9683,4109.4,4108.7,0.254]
[1760360894976,3.5903,4109.0,4108.7,0.254]
[1760360895167,0.9683,4108.8,4108.7,0.254]
[1760360895574,0.9817,4108.4,4108.3,0.2566758]
[1760360896272,4.1895,4108.4,4108.3,0.0026758]
[1760360896963,0.9817,4106.9,4106.7,0.43796]
[1760360897164,0.4164,4107.0,4106.7,0.43796]
[1760360897165,0.4164,4107.0,4106.7,0.254]
[1760360897365,0.9817,4106.8,4106.7,0.254]
[1760360897668,0.4164,4107.0,4105.9,11.491]
[1760360897869,0.4164,4107.0,4105.1,1.73006724]
[1760360897870,0.85444,4106.0,4105.2,3.4618]
[1760360898067,3.2078,4106.1,4105.2,3.46458464]
[1760360898266,0.00231071,4106.8,4105.8,0.289]
[1760360898468,0.00231071,4106.8,4106.6,0.43796]
[1760360898665,0.00231071,4106.8,4106.7,0.254]
[1760360899271,0.00231071,4106.8,4106.7,3.7508]
[1760360899472,0.00231071,4106.8,4106.7,3.4618]
[1760360899875,0.98401071,4106.8,4106.7,0.254]
[1760360900572,0.00231071,4106.8,4106.7,0.254]
[1760360901173,0.00231071,4106.8,4106.7,0.543]
[1760360901380,0.00231071,4106.8,4106.7,0.254]
[1760360901779,0.98401071,4106.8,4106.7,0.254]
[1760360902483,0.9817,4106.7,4105.9,3.2078]
[1760360902776,1.3981,4106.0,4105.9,3.4618]
[1760360903573,1.3981,4106.0,4105.2,0.00278464]
[1760360903574,1.3981,4105.5,4105.4,3.2078]
[1760360903770,1.3981,4105.5,4105.4,3.4618]
[1760360904189,1.3981,4105.5,4105.4,0.254]
[1760360904580,0.9817,4105.3,4105.2,0.00278464]
[1760360905190,0.9817,4105.4,4105.2,0.00278464]
[1760360905480,3.2078,4105.6,4105.4,0.43809]
[1760360905686,0.9817,4105.5,4105.3,0.254]
[1760360905982,0.9817,4105.9,4105.6,0.43807]
[1760360906174,0.4164,4106.0,4105.6,0.43807]
[1760360906373,3.2078,4106.3,4106.0,0.43803]
[1760360906571,0.9817,4106.2,4106.0,0.43803]
[1760360907579,0.85439,4106.5,4106.1,0.43802]
[1760360907776,3.21011071,4106.8,4106.0,0.289]
[1760360907976,4.19181071,4106.8,4106.4,0.43799]
[1760360908176,3.21011071,4106.8,4106.5,0.69198]
[1760360908382,0.9817,4106.7,4106.5,0.69198]
[1760360908880,3.21011071,4106.8,4106.5,0.254]
[1760360909087,0.00231071,4106.8,4106.7,0.72696]
[1760360909987,0.00231071,4106.8,4106.7,0.43796]
[1760360910285,0.00231071,4106.8,4106.7,0.72696]
[1760360910487,0.00231071,4106.8,4106.6,0.43797]
[1760360911087,0.00231071,4106.8,4106.6,0.72697]
[1760360911587,0.00231071,4106.8,4106.6,0.43797]
[1760360912876,0.00231071,4106.8,4106.7,0.289]
[1760360915186,0.9817,4108.2,4106.7,2.1898]
[1760360915391,1.09421,4109.4,4106.5,0.254]
[1760360915392,4.1895,4108.8,4108.1,1.09454]
[1760360915685,1.3981,4109.0,4108.7,0.43775]
[1760360915892,1.3981,4109.0,4108.7,0.69175]
[1760360916097,1.3981,4109.0,4108.9,0.2867]
[1760360916098,0.00253114,4109.0,4108.9,0.2867]
[1760360916388,0.00253114,4109.0,4108.8,0.43774]
[1760360916586,0.9817,4108.9,4108.7,0.25715]
[1760360916782,0.9817,4108.9,4108.7,0.6949]
[1760360917193,0.85665114,4109.0,4108.7,0.6949]
[1760360917384,0.9817,4108.9,4108.8,0.254]
[1760360917584,0.85665114,4109.0,4108.8,0.254]
[1760360917585,0.00253114,4109.0,4108.8,0.254]
[1760360917881,0.00253114,4109.0,4108.8,0.69173]
[1760360918084,0.00253114,4109.0,4108.8,0.97843]
[1760360918487,0.43785,4107.8,4107.5,3.2078]
[1760360918796,0.9817,4107.3,4107.2,0.254]
[1760360919091,0.4164,4107.0,4106.8,0.254]
[1760360919279,0.9817,4106.4,4106.3,0.254]
[1760360919583,0.9817,4106.4,4106.3,0.25685675]
[1760360920491,0.9817,4106.4,4106.3,6.75e-06]
[1760360920894,4.21461914,4106.4,4106.3,6.75e-06]
[1760360922184,4.75946264,4106.4,4106.3,6.75e-06]
[1760360922991,4.46861914,4106.4,4106.3,6.75e-06]
[1760360923291,1.2357,4106.4,4106.3,6.75e-06]
[1760360923695,0.9817,4106.4,4106.3,6.75e-06]
[1760360925793,0.9766,4106.9,4106.3,6.75e-06]
[1760360926093,0.4164,4107.0,4106.6,0.43796]
[1760360926288,0.9806,4106.7,4106.6,0.43796]
[1760360926694,0.9806,4106.7,4106.3,6.75e-06]
[1760360926695,1.3721,4106.5,4106.4,0.43799]
[1760360927083,0.85433,4107.0,4106.7,0.43796]
[1760360927283,0.9806,4106.8,4106.7,0.43796]
[1760360927487,0.9806,4106.8,4106.3,6.75e-06]
[1760360927488,0.4164,4107.0,4106.8,0.43794]
[1760360927687,0.9806,4106.9,4106.8,0.43794]
[1760360930088,3.2078,4107.1,4107.0,0.43793]
[1760360930295,1.397,4107.5,4107.4,0.43789]
[1760360930491,3.2078,4107.6,4107.4,0.43789]
[1760360930687,0.9806,4107.5,4107.4,0.43789]
[1760360931084,1.3721,4107.5,4107.1,0.43791]
[1760360931389,0.4379,4107.3,4107.1,0.43791]
[1760360931590,0.3915,4107.0,4106.9,0.43793]
[1760360931790,1.3721,4107.0,4106.9,0.43793]
[1760360933785,0.9806,4107.0,4106.9,0.43793]
[1760360933990,4.62627,4107.6,4107.4,0.43789]
[1760360934198,1.41848,4107.5,4107.2,0.4379]
[1760360934398,0.9806,4107.4,4107.2,0.4379]
[1760360934692,0.9806,4107.4,4106.6,0.254]
[1760360934893,0.43792,4107.2,4106.6,0.254]
[1760360935093,0.43792,4107.2,4107.0,0.43793]
[1760360935294,0.9806,4107.1,4107.0,0.43793]
[1760360935591,0.3915,4107.0,4106.6,0.254]
[1760360935794,0.3915,4107.0,4106.3,6.75e-06]
[1760360935795,0.43799,4106.4,4106.3,6.75e-06]
[1760360936089,3.64579,4106.4,4106.3,6.75e-06]
[1760360936294,3.89979,4106.4,4106.3,6.75e-06]
[1760360936497,3.2078,4106.4,4106.3,6.75e-06]
[1760360937492,6.84809016,4106.4,4106.3,6.75e-06]
[1760360937696,0.3915,4104.5,4104.4,3.2078]
[1760360937896,1.3721,4104.5,4104.4,3.2078]
[1760360938092,0.9806,4104.2,4104.1,0.254]
[1760360938698,0.98285697,4104.2,4104.1,0.25595167]
[1760360939592,0.98285697,4104.2,4104.1,0.00195167]
[1760360943508,0.00225697,4104.2,4104.1,1.46609167]
[1760360943702,0.00225697,4104.2,4104.1,0.25595167]
[1760360943703,0.98285697,4104.2,4104.1,0.25595167]
[1760360946006,0.00225697,4104.2,4104.1,1.02785167]
[1760360946202,0.00225697,4104.2,4104.1,0.25595167]
[1760360946698,0.98285697,4104.2,4104.1,0.25595167]
[1760360947401,0.98285697,4104.2,4104.1,1.02785167]
[1760360947402,0.00225697,4104.2,4104.1,1.02785167]
[1760360949402,1.4187,4105.4,4104.3,0.7719]
[1760360949600,3.5993,4105.5,4105.2,0.43811]
[1760360949804,3.5993,4105.5,4104.6,3.2078]
[1760360949805,0.3915,4105.0,4104.9,0.254]
[1760360949997,0.3915,4105.0,4104.1,0.00195167]
[1760360949998,0.9806,4104.2,4104.1,0.00195167]
[1760360950403,0.9836891,4104.2,4104.1,0.00195167]
[1760360951806,0.9806,4103.8,4102.8,0.0243736]
[1760360951999,0.9806,4102.9,4102.8,0.0243736]
[1760360952800,0.9806,4102.9,4102.8,0.02736968]
[1760360954811,1.2346,4102.9,4102.8,0.02736968]
[1760360955309,0.43851,4101.6,4101.4,3.2078]
[1760360955513,0.9838,4101.5,4101.4,3.2078]
[1760360955905,0.9838,4102.2,4101.4,3.2078]
[1760360956202,0.9838,4102.2,4101.5,0.254]
[1760360956407,0.43843,4102.3,4101.5,0.254]
[1760360956810,1.3753,4103.0,4102.0,3.2078]
[1760360956999,0.9838,4102.7,4102.2,0.43843]
[1760360957202,0.9838,4102.9,4102.2,0.43843]
[1760360957407,0.4384,4102.7,4102.4,0.43842]
[1760360957611,0.9838,4102.4,4102.1,0.254]
[1760360957810,0.43843,4102.4,4102.1,0.69245]
[1760360958010,3.2078,4102.7,4102.5,0.43841]
[1760360958209,0.9838,4102.6,4102.5,0.43841]
[1760360959006,0.254,4103.2,4102.1,0.254]
[1760360959007,3.2078,4103.3,4102.6,0.9487]
[1760360959310,0.3856,4104.0,4103.6,0.43828]
[1760360959311,3.2078,4103.8,4103.6,0.43828]
[1760360959706,0.9838,4104.1,4103.3,0.254]
[1760360960008,0.9838,4103.9,4103.7,0.43828]
[1760360960209,0.43825,4104.0,4103.7,0.43828]
[1760360960609,0.43825,4104.0,4103.8,0.43827]
[1760360960908,0.0030891,4104.2,4104.0,0.43824]
[1760360961705,0.0030891,4104.2,4104.1,0.9487]
[1760360961906,9.1e-06,4104.2,4104.1,0.9487]
[1760360962205,1.48056,4106.5,4104.5,0.2719]
[1760360962206,0.3856,4106.5,4104.5,0.2719]
[1760360962406,1.42181,4106.3,4105.8,0.43805]
[1760360962707,0.9838,4106.2,4105.5,3.2078]
[1760360962914,3.2078,4106.3,4105.9,0.254]
[1760360962915,1.3694,4106.0,4105.9,0.254]
[1760360963118,1.37252188,4106.0,4105.9,0.25628738]
[1760360964220,1.37252188,4106.0,4105.9,0.00228738]
[1760360965018,1.62652188,4106.0,4105.9,0.00228738]
[1760360965520,1.42203,4104.2,4103.9,1.29550395]
[1760360965719,3.2078,4104.3,4103.7,3.2078]
[1760360966019,3.2078,4104.3,4103.7,3.64608]
[1760360966219,3.64602,4104.3,4103.8,0.43826]
[1760360966426,3.64602,4104.3,4103.9,0.43826]
[1760360966427,0.9838,4104.2,4103.9,0.43826]
[1760360966719,0.9838,4104.2,4104.0,0.43824]
[1760360967115,3.64602,4104.3,4104.0,0.43824]
[1760360967316,0.9838,4104.2,4104.0,0.43824]
[1760360967516,1.42198,4104.7,4103.8,0.0028368]
[1760360967716,1.3694,4104.5,4104.0,0.43825]
[1760360967916,0.9838,4104.2,4104.0,0.43825]
[1760360969221,0.43818,4104.7,4103.9,0.9487]
[1760360969419,0.4382,4104.5,4104.1,0.43824]
[1760360969619,0.9838,4104.7,4104.1,0.254]
[1760360969823,0.9838,4104.4,4104.1,0.69224]
[1760360970021,0.8238,4104.5,4104.2,0.43823]
[1760360970622,0.43822,4104.3,4104.1,0.254]
[1760360970823,0.9838,4104.2,4104.1,0.254]
[1760360971221,4.62977,4104.8,4104.1,1.2027]
[1760360971422,4.1916,4104.8,4104.7,0.43817]
[1760360971921,1.42197,4104.7,4104.6,0.254]
[1760360972122,3.2078,4104.8,4104.4,0.254]
[1760360972123,1.8076,4104.5,4104.4,0.254]
[1760360972319,1.3694,4104.5,4104.4,0.254]
[1760360972623,1.8076,4104.5,4104.4,0.254]
[1760360972820,0.82385,4104.0,4103.8,0.0028368]
[1760360973026,0.9838,4103.9,4103.8,0.0028368]
[1760360973329,0.9838,4103.9,4103.8,0.2568368]
[1760360973623,0.9838,4103.9,4103.8,0.0028368]
[1760360974929,0.4384,4102.6,4102.2,3.2078]
[1760360975227,0.4384,4102.6,4101.9,3.34039395]
[1760360975228,0.9838,4102.4,4102.3,0.69243]
[1760360975621,0.9838,4102.3,4102.2,0.43844]
[1760360975823,0.9838,4102.3,4101.9,0.43847]
[1760360975824,0.9838,4102.1,4101.9,0.43847]
[1760360976027,1.42224,4102.2,4102.0,0.69246]
[1760360976218,0.9838,4102.1,4102.0,0.69246]
[1760360976828,0.00261074,4102.3,4101.9,0.00264212]
[1760360976829,0.43846,4102.0,4101.9,0.00264212]
[1760360977017,1.80786,4102.0,4101.9,0.25664212]
[1760360977222,1.3694,4102.0,4101.9,0.25664212]
[1760360977923,1.3694,4102.0,4101.9,0.00264212]
[1760360983026,0.43859,4100.9,4100.7,3.64639]
[1760360983230,0.9838,4100.8,4100.7,3.2078]
[1760360984232,0.9838,4100.8,4100.7,0.00209365]
[1760360986430,4.1916,4100.8,4100.7,0.00209365]
[1760360986737,4.1916,4100.8,4100.7,0.25609365]
[1760360987731,4.1916,4100.8,4100.7,0.00209365]
[1760360987928,4.1916,4100.8,4100.7,0.25609365]
[1760360988126,4.1916,4100.8,4100.7,0.00209365]
[1760360990032,4.63019,4100.8,4100.7,0.00209365]
[1760360995729,4.63019,4100.8,4100.2,0.254]
[1760360995730,1.36584,4100.3,4100.2,0.254]
[1760360995927,0.43875,4099.3,4098.8,2.02701]
[1760360996132,0.9272,4099.3,4099.2,0.93670706]
[1760360996634,1.36812416,4099.3,4099.2,0.93903055]
[1760360996837,0.92937416,4099.3,4099.2,0.68503055]
[1760360997034,1.36812416,4099.3,4099.2,0.50027055]
[1760360997339,1.36812416,4099.3,4099.2,0.24627055]
[1760360999546,1.36812416,4099.3,4099.2,0.68503055]
[1760360999741,0.00217416,4099.3,4099.2,0.68503055]
[1760361000047,0.00217416,4099.3,4099.2,1.61503055]
[1760361000544,4.135,4100.8,4100.3,0.43864]
[1760361000747,0.9272,4100.4,4100.3,0.43864]
[1760361001043,0.9272,4100.4,4100.0,0.43868]
[1760361001044,0.9272,4100.1,4100.0,0.43868]
[1760361001232,0.9272,4100.1,4100.0,0.69268]
[1760361001435,0.00189836,4100.1,4100.0,1.62268]
[1760361002651,0.00189836,4100.1,4100.0,0.69268]
[1760361002838,0.92909836,4100.1,4100.0,0.69268]
[1760361005347,0.00189836,4100.1,4100.0,1.62268]
[1760361005541,3.2078,4100.8,4100.7,0.4386]
[1760361005737,3.2078,4100.8,4100.7,1.6226]
[1760361005934,0.3856,4101.0,4100.8,0.43858]
[1760361006149,0.3856,4101.0,4100.7,1.184]
[1760361006150,0.9272,4101.7,4101.0,0.43857]
[1760361006446,3.2078,4101.8,4101.0,0.43857]
[1760361006447,0.9272,4101.1,4101.0,0.43857]
[1760361006651,0.92958664,4101.1,4101.0,0.43857]
[1760361006842,0.3926,4100.5,4099.9,4.50586514]
[1760361007043,0.3926,4100.0,4099.5,0.93]
[1760361007240,0.3926,4100.0,4099.4,3.2078]
[1760361007241,0.9272,4099.9,4099.6,0.253]
[1760361007441,0.9272,4099.9,4099.8,0.4387]
[1760361007947,0.9272,4100.4,4100.3,0.43864]
[1760361008148,3.2078,4100.6,4099.5,1.29806514]
[1760361008149,0.43867,4100.1,4099.5,1.29806514]
[1760361008448,0.43867,4100.1,4099.9,0.43868]
[1760361008449,0.9272,4100.0,4099.9,0.43868]
[1760361008841,0.9272,4100.0,4099.6,0.253]
[1760361009145,1.3198,4099.5,4099.3,0.43875]
[1760361009346,1.3198,4099.5,4099.4,0.69174]
[1760361009536,0.83133,4099.5,4099.2,0.68502055]
[1760361009746,1.3198,4099.5,4099.4,0.253]
[1760361010147,0.9272,4099.4,4099.3,0.43875]
[1760361010343,0.9272,4099.4,4099.3,0.69175]
[1760361010650,0.4387,4099.8,4099.6,0.43871]
[1760361010843,0.9272,4099.7,4099.6,0.43871]
[1760361011648,0.3926,4099.5,4099.3,0.253]
[1760361011848,0.9272,4099.4,4099.3,0.253]
[1760361012352,0.3926,4099.5,4099.4,0.43874]
[1760361012353,1.3198,4099.5,4099.4,0.43874]
[1760361012849,1.3198,4099.5,4099.3,0.253]
[1760361012850,1.36594,4099.4,4099.3,0.253]
[1760361013043,1.36594,4099.4,4099.2,0.24627055]
[1760361013241,4.135,4099.3,4099.2,0.23738832]
[1760361013445,4.68439225,4099.3,4099.2,0.23738832]
[1760361013645,0.43886,4098.4,4098.0,1.29806514]
[1760361013847,0.9272,4098.2,4098.1,0.253]
[1760361014154,0.43886,4098.3,4098.1,0.69187]
[1760361014351,0.9272,4098.2,4098.1,0.69187]
[1760361014557,0.9272,4098.2,4098.1,1.624643]
[1760361014558,0.00230624,4098.2,4098.1,1.624643]
[1760361016342,0.00230624,4098.2,4098.1,0.002773]
[1760361016343,0.93150624,4098.2,4098.1,0.002773]
[1760361016550,0.93150624,4098.2,4098.1,0.255773]
[1760361017252,0.00230624,4098.2,4098.1,1.194373]
[1760361017853,0.00230624,4098.2,4098.1,1.633253]
[1760361018051,3.2078,4099.2,4098.1,1.194373]
[1760361018245,0.3804,4100.5,4100.1,0.43866]
[1760361018246,4.07431264,4100.3,4100.1,0.43866]
[1760361018446,0.9292,4100.2,4100.0,1.37727]
[1760361018648,0.9292,4100.2,4100.1,0.253]
[1760361018843,0.43866,4100.2,4099.5,0.43873]
[1760361019046,0.43866,4100.2,4099.3,3.2078]
[1760361019047,0.3804,4100.0,4099.7,0.43871]
[1760361019254,0.81908,4100.0,4099.7,0.43871]
[1760361019554,0.0023505,4100.2,4099.9,0.9386]
[1760361019755,0.0023505,4100.2,4100.1,0.9386]
[1760361020455,0.0023505,4100.2,4100.0,0.43868]
[1760361020653,0.9292,4100.1,4100.0,0.43868]
[1760361020848,0.9292,4100.1,4099.8,0.253]
[1760361020849,0.9292,4099.9,4099.8,0.253]
[1760361021255,0.0023505,4100.2,4099.8,0.253]
[1760361021454,0.0023505,4100.2,4100.1,0.9386]
[1760361021655,0.9292,4100.1,4100.0,1.37727]
[1760361022252,0.0023505,4100.2,4100.0,1.37727]
[1760361022952,0.0023505,4100.2,4100.1,0.9386]
[1760361025954,3.2078,4101.3,4101.0,0.43856]
[1760361026156,4.137,4101.3,4101.1,1.63015]